bitfinex/quotes_ETHUSD_20241116
["timestamp","ask_amount","ask_price","bid_price","bid_amount"]
[1731767533133,3.15325,3171.4,3170.7,3.1538]
[1731767533330,3.15308,3171.5,3170.7,3.1538]
[1731767533563,3.15324,3171.4,3170.7,3.1538]
[1731767533767,3.15328,3171.3,3170.3,3.15424]
[1731767533949,3.1536,3171.0,3170.3,3.15198478]
[1731767534119,0.01,3171.7,3170.1,3.15442]
[1731767534323,0.01,3171.4,3169.8,3.15475]
[1731767534629,3.15397,3170.7,3169.9,3.15459]
[1731767534846,3.154,3170.6,3169.9,3.15459]
[1731767535156,3.154,3170.6,3169.5,3.65361439]
[1731767535157,3.15368,3170.9,3169.6,3.21806121]
[1731767535368,3.15378,3170.8,3170.1,3.15439]
[1731767535515,3.15388,3170.7,3170.1,3.15439]
[1731767536154,3.15388,3170.7,3169.6,0.06309121]
[1731767536155,3.15369,3170.9,3170.2,3.15436]
[1731767536318,3.15405,3170.6,3170.1,3.0]
[1731767536529,3.15405,3170.6,3169.9,3.0]
[1731767537091,3.15405,3170.6,3170.0,3.0]
[1731767537377,3.469059,3170.9,3170.2,3.15436]
[1731767537584,0.315369,3170.9,3170.0,6.15455]
[1731767537746,3.15388,3170.7,3170.0,6.15455]
[1731767538740,3.1538,3170.8,3170.1,3.15439]
[1731767538941,3.1538,3170.8,3169.9,3.0]
[1731767538942,3.15391,3170.7,3169.9,3.0]
[1731767539180,3.1538,3170.8,3169.9,6.15459]
[1731767539381,3.15398,3170.6,3169.9,6.15459]
[1731767539542,3.15328,3171.3,3169.9,3.0]
[1731767539744,3.15424,3170.4,3169.8,3.15473]
[1731767540443,3.1543,3170.3,3169.6,3.1549]
[1731767541155,3.15424,3170.4,3169.6,3.1549]
[1731767541386,3.15379,3170.8,3170.2,3.15436]
[1731767541543,3.15378,3170.8,3170.2,3.15436]
[1731767542745,3.15378,3170.8,3169.8,3.15475]
[1731767542991,3.15378,3170.8,3169.5,3.65361439]
[1731767542992,3.15378,3170.8,3169.9,0.315475]
[1731767543303,3.15449,3170.1,3169.2,3.0]
[1731767543441,3.15449,3170.1,3168.9,3.15566]
[1731767543442,3.15467,3169.9,3168.9,3.15566]
[1731767543638,3.15467,3169.9,3168.8,6.31152]
[1731767543844,3.15467,3169.9,3169.2,3.15532]
[1731767544085,3.15467,3169.9,3169.2,3.15527]
[1731767544301,0.315449,3170.1,3169.4,3.15513]
[1731767544494,3.15458,3170.0,3169.4,3.15513]
[1731767544957,3.8170209,3170.0,3169.4,3.15513]
[1731767545158,3.15469,3169.9,3169.2,6.15534]
[1731767545594,3.8170209,3170.0,3169.2,6.15534]
[1731767545802,3.1547,3169.9,3169.2,6.15534]
[1731767546011,0.01,3170.4,3168.6,0.63018]
[1731767546207,0.01,3170.4,3168.9,3.0]
[1731767546208,3.15506,3169.6,3168.9,3.0]
[1731767546371,3.56,3170.5,3168.7,3.65361439]
[1731767546579,3.15464,3170.0,3169.1,3.15537]
[1731767546898,0.357,3170.4,3169.1,3.15537]
[1731767547109,3.15464,3170.0,3169.3,3.15523]
[1731767547317,3.15404,3170.6,3169.8,3.15469]
[1731767547458,0.316298,3171.4,3170.1,3.1544]
[1731767547662,0.01,3171.8,3169.9,3.65361439]
[1731767547860,3.15342,3171.2,3170.5,3.15407]
[1731767548480,3.15342,3171.2,3170.6,3.15397]
[1731767548692,3.15319,3171.4,3170.7,3.15383]
[1731767549007,0.315319,3171.3,3170.8,3.15377]
[1731767549164,0.315319,3171.3,3169.9,3.65361439]
[1731767549371,3.15292,3171.7,3170.9,6.30725]
[1731767549675,3.15292,3171.7,3169.8,3.15476]
[1731767549676,3.15266,3172.0,3170.7,3.65361439]
[1731767549862,3.15266,3172.0,3171.3,3.1532]
[1731767550566,3.15252,3172.1,3171.2,3.15335]
[1731767550894,3.1526,3172.0,3171.3,3.15327]
[1731767551091,3.15275,3171.9,3171.2,3.15331]
[1731767551614,3.15252,3172.1,3171.3,3.15318]
[1731767551816,3.15266,3172.0,3171.3,3.15318]
[1731767552221,3.1527,3171.9,3171.3,3.15318]
[1731767552519,3.15301,3171.6,3170.9,3.15366]
[1731767552725,0.31524,3172.2,3170.7,3.15381]
[1731767552726,3.0,3172.0,3170.7,3.15381]
[1731767552873,3.0,3172.0,3170.3,3.65361439]
[1731767552874,3.15326,3171.4,3170.3,3.65361439]
[1731767553422,3.15326,3171.4,3170.6,3.15389]
[1731767553926,3.91312692,3171.9,3171.1,3.1534]
[1731767554083,3.91312692,3171.9,3170.4,3.0]
[1731767554084,0.76044692,3171.9,3170.9,3.15364]
[1731767554292,3.15302,3171.6,3171.0,3.15357]
[1731767554492,0.315302,3171.5,3171.0,3.15357]
[1731767554887,3.1525,3172.1,3171.4,3.1531]
[1731767555105,3.1525,3172.1,3171.2,3.15336]
[1731767555288,3.1522,3172.4,3170.9,0.0630626]
[1731767555289,3.1522,3172.4,3171.5,3.15306]
[1731767556129,4.60446924,3172.7,3171.5,3.65361439]
[1731767556289,3.15227,3172.4,3171.1,3.0]
[1731767556490,4.60446924,3172.8,3171.1,3.0]
[1731767556491,3.15269,3171.9,3171.1,3.15343]
[1731767556691,3.15281,3171.8,3171.1,3.15343]
[1731767556921,3.468211,3171.7,3170.7,3.15386]
[1731767557138,4.60549659,3171.8,3170.5,3.0]
[1731767557295,3.15335,3171.3,3170.1,3.0]
[1731767557492,3.0,3171.7,3170.0,3.65361439]
[1731767557692,3.15361,3171.0,3170.2,3.15429]
[1731767557887,3.15339,3171.2,3170.4,3.15409]
[1731767558093,3.1531,3171.5,3170.8,3.15376]
[1731767558332,1.07582766,3171.6,3171.0,3.15357]
[1731767558695,3.15295,3171.7,3171.0,3.15357]
[1731767559334,3.15268,3171.9,3170.8,3.15376]
[1731767559526,3.15298,3171.6,3170.8,3.15376]
[1731767559840,0.55,3171.8,3170.4,6.80778439]
[1731767560128,3.15326,3171.4,3170.2,3.15435]
[1731767560294,3.15336,3171.3,3170.5,3.15405]
[1731767560797,3.1534,3171.2,3170.5,3.15405]
[1731767561030,3.15326,3171.4,3170.6,3.15396]
[1731767561231,0.315326,3171.3,3170.7,3.15378]
[1731767561537,0.315326,3171.3,3170.8,3.15376]
[1731767561746,3.15266,3172.0,3170.9,0.06307656]
[1731767562036,3.1524,3172.2,3171.3,3.15321]
[1731767562196,3.46774,3172.1,3170.8,3.0]
[1731767562398,3.15263,3172.0,3171.2,3.15329]
[1731767562808,3.15263,3172.0,3171.3,3.15325]
[1731767563041,0.31524,3172.1,3171.1,3.15347]
[1731767563262,3.15276,3171.9,3171.3,3.15327]
[1731767563421,3.15276,3171.9,3170.8,3.0]
[1731767563623,3.15276,3171.9,3171.2,3.15336]
[1731767564134,3.15276,3171.9,3171.3,3.15327]
[1731767564549,3.15276,3171.9,3171.0,3.15357]
[1731767564854,3.15276,3171.9,3171.1,3.15347]
[1731767564855,3.468126,3171.8,3171.1,3.15347]
[1731767565328,3.468126,3171.8,3170.8,6.15374]
[1731767565329,3.15299,3171.6,3170.8,6.15374]
[1731767565530,3.15315,3171.5,3170.8,3.15374]
[1731767566328,3.15289,3171.7,3170.9,3.15361]
[1731767566636,3.4996976,3171.7,3170.9,3.15361]
[1731767566819,3.15302,3171.6,3170.9,3.15361]
[1731767567241,3.15302,3171.6,3171.0,3.15357]
[1731767567964,0.3468076,3171.7,3171.1,3.15347]
[1731767569444,3.15289,3171.7,3171.1,3.15347]
[1731767569646,3.15279,3171.8,3171.1,3.15347]
[1731767569968,3.15279,3171.8,3170.9,3.15367]
[1731767569969,3.1526,3172.0,3170.3,3.65361439]
[1731767570269,3.1526,3172.0,3171.3,3.15325]
[1731767570421,3.15272,3171.9,3171.3,3.15325]
[1731767570629,3.1528,3171.8,3171.1,3.15341]
[1731767571246,3.1529,3171.7,3171.0,3.15348]
[1731767571443,3.15268,3171.9,3171.2,3.15336]
[1731767572056,3.15251,3172.1,3171.2,3.15336]
[1731767572263,3.15251,3172.1,3171.4,3.15316]
[1731767572438,3.15251,3172.1,3170.4,3.0]
[1731767572439,3.15251,3172.1,3171.5,3.15306]
[1731767572633,0.315251,3172.0,3171.4,3.15318]
[1731767573134,0.315251,3172.0,3171.3,3.15319]
[1731767573135,3.467841,3172.0,3171.3,3.15319]
[1731767573335,3.15259,3172.0,3171.3,3.15319]
[1731767573573,3.15278,3171.8,3171.1,3.15346]
[1731767573734,3.15259,3172.0,3171.1,3.15346]
[1731767574071,3.15259,3172.0,3171.2,3.15329]
[1731767574231,3.78309,3172.0,3171.3,3.15325]
[1731767574930,3.15268,3171.9,3171.2,3.15329]
[1731767575178,3.15268,3171.9,3171.3,3.15326]
[1731767576168,3.15238,3172.3,3171.5,3.15304]
[1731767576337,3.15238,3172.3,3170.8,3.0]
[1731767576338,3.15228,3172.3,3171.3,3.15327]
[1731767576533,3.15259,3172.0,3170.8,3.0]
[1731767576770,3.15248,3172.1,3171.4,3.15311]
[1731767576980,3.1528,3171.8,3171.2,3.15336]
[1731767577176,0.76060612,3172.4,3171.0,3.15355]
[1731767577177,3.15288,3171.7,3171.0,3.15355]
[1731767577335,3.15288,3171.7,3170.8,6.15377]
[1731767577336,3.15315,3171.5,3170.8,6.15377]
[1731767577541,3.15315,3171.5,3170.9,3.15363]
[1731767577845,3.15288,3171.7,3171.0,3.0]
[1731767577846,3.15298,3171.6,3171.0,3.0]
[1731767578064,3.15316,3171.5,3170.9,0.55]
[1731767578310,0.31528,3171.8,3170.5,3.15406]
[1731767578311,3.15347,3171.2,3170.5,3.15406]
[1731767578487,12.09452416,3172.1,3170.7,3.15387]
[1731767578488,4.60606118,3171.7,3170.7,3.15387]
[1731767578817,4.60606118,3171.7,3170.1,0.64196238]
[1731767578818,3.15335,3171.3,3170.6,3.15396]
[1731767579310,3.15335,3171.3,3170.7,3.15385]
[1731767579473,3.15335,3171.3,3170.8,0.55]
[1731767579674,3.15291,3171.7,3170.8,0.55]
[1731767579874,3.15315,3171.5,3170.8,3.74573]
[1731767580075,3.15315,3171.5,3171.0,0.55]
[1731767580694,3.468281,3171.6,3171.0,0.55]
[1731767581076,3.468281,3171.6,3170.9,3.15366]
[1731767581077,3.1528,3171.8,3171.3,0.55]
[1731767581278,3.15288,3171.7,3171.3,0.55]
[1731767581509,3.15268,3171.9,3171.2,3.15336]
[1731767581719,3.15268,3171.9,3171.3,0.55]
[1731767581919,4.083198,3171.9,3171.3,0.55]
[1731767582916,3.15305,3171.6,3171.1,0.55]
[1731767583124,3.15315,3171.5,3170.9,0.55]
[1731767585735,3.1535,3171.1,3170.9,0.55]
[1731767586249,3.15357,3171.0,3170.9,0.55]
[1731767586635,3.15367,3170.9,3170.8,0.042]
[1731767591342,6.15367,3170.9,3170.8,0.042]
[1731767591543,11.59797154,3170.9,3170.8,0.042]
[1731767591744,13.11979301,3170.9,3170.8,0.042]
[1731767592185,7.67549147,3170.9,3170.8,0.042]
[1731767592540,13.12600222,3170.9,3170.8,0.042]
[1731767592745,7.68549147,3170.9,3170.8,0.042]
[1731767593455,13.13689689,3170.9,3170.8,0.042]
[1731767593661,3.15496,3169.7,3168.9,3.15565]
[1731767593860,3.15496,3169.7,3169.0,0.315565]
[1731767594060,3.15525,3169.4,3168.6,3.15587]
[1731767594270,7.76987533,3170.1,3168.6,3.15587]
[1731767594271,3.15508,3169.5,3168.6,3.15587]
[1731767594464,3.15554,3169.1,3168.2,3.1563]
[1731767594673,3.15562,3169.0,3168.2,3.1563]
[1731767594874,3.15537,3169.2,3168.0,3.15656]
[1731767594875,3.1559,3168.7,3168.1,0.62742821]
[1731767595080,3.1559,3168.7,3168.0,3.15656]
[1731767595287,3.15597,3168.6,3168.0,0.63133]
[1731767595595,3.15578,3168.8,3167.8,3.15674]
[1731767595904,3.15534,3169.3,3167.7,3.08850729]
[1731767595905,6.18071749,3169.3,3167.7,0.0631298]
[1731767596057,3.15547,3169.1,3167.7,3.15677]
[1731767596395,3.15572,3168.9,3167.9,3.15665]
[1731767596569,3.15598,3168.6,3167.9,3.15665]
[1731767597055,3.15598,3168.6,3167.7,3.15685]
[1731767597257,3.15598,3168.6,3167.8,3.55]
[1731767597485,3.15585,3168.8,3168.1,3.15644]
[1731767597694,3.15585,3168.8,3168.2,0.55]
[1731767598236,8.23322841,3169.8,3168.2,0.61312977]
[1731767598504,3.15477,3169.8,3168.9,3.15559]
[1731767598658,4.60895374,3170.3,3168.4,0.55]
[1731767598854,3.15498,3169.6,3168.8,3.15568]
[1731767599075,3.15498,3169.6,3168.9,0.55]
[1731767599356,3.15508,3169.5,3168.9,0.55]
[1731767599557,3.15463,3170.0,3168.8,0.55]
[1731767599755,3.15526,3169.4,3168.8,0.55]
[1731767599983,0.315526,3169.4,3168.6,0.55]
[1731767600249,3.15537,3169.2,3168.4,0.55]
[1731767600450,3.15557,3169.0,3168.4,3.70615]
[1731767600653,3.15557,3169.0,3168.2,3.15631]
[1731767600892,3.15575,3168.9,3168.2,3.15631]
[1731767601128,3.15575,3168.9,3167.9,3.15664]
[1731767601338,3.15609,3168.5,3167.8,3.15675]
[1731767601537,3.471255,3168.9,3167.7,0.38423653]
[1731767601833,3.471255,3168.9,3168.1,3.15644]
[1731767602334,3.15578,3168.8,3168.1,3.15644]
[1731767602738,3.471315,3168.9,3168.2,3.70633]
[1731767603349,0.315575,3168.9,3168.2,0.55]
[1731767603559,3.15577,3168.8,3168.1,3.15645]
[1731767603711,3.470839,3168.8,3168.2,0.55]
[1731767604045,0.315069,3168.8,3168.1,3.15637]
[1731767604247,0.315069,3168.8,3168.2,0.55]
[1731767605155,3.5346004,3168.7,3168.2,0.55]
[1731767605363,3.5345104,3168.7,3167.9,0.55]
[1731767605543,3.5345104,3168.7,3167.9,3.15657]
[1731767605857,3.5345104,3168.7,3168.1,0.55]
[1731767606060,0.35345104,3168.6,3168.1,0.55]
[1731767606936,0.35345104,3168.6,3167.9,0.55]
[1731767607142,0.35345104,3168.6,3168.2,3.15635]
[1731767607346,3.15557,3169.0,3168.3,3.70622]
[1731767607665,3.15557,3169.0,3168.3,0.55]
[1731767607948,3.15557,3169.0,3168.5,0.55]
[1731767608121,3.15567,3168.9,3168.3,0.55]
[1731767608689,3.15567,3168.9,3168.3,3.70626]
[1731767609365,3.15531,3169.3,3168.6,3.15595]
[1731767609558,3.15531,3169.3,3168.7,0.55]
[1731767609778,3.15508,3169.5,3168.8,3.15576]
[1731767609971,3.15508,3169.5,3168.9,0.55]
[1731767610150,0.315508,3169.4,3168.9,0.55]
[1731767610345,3.15527,3169.3,3168.8,0.55]
[1731767610673,0.315508,3169.4,3168.8,3.70573]
[1731767610877,3.15513,3169.5,3168.9,3.15565]
[1731767611173,3.15513,3169.5,3169.0,0.55]
[1731767611751,3.15489,3169.7,3168.9,0.55]
[1731767612098,3.15517,3169.4,3168.9,0.55]
[1731767612600,3.15517,3169.4,3168.8,0.55]
[1731767612797,3.470687,3169.4,3168.8,0.55]
[1731767613004,3.470687,3169.4,3168.8,3.15575]
[1731767613162,3.15499,3169.6,3168.9,0.55]
[1731767613482,3.15507,3169.5,3168.9,0.55]
[1731767614204,3.15507,3169.5,3168.9,3.15565]
[1731767614421,2.972301,3169.5,3169.0,0.55]
[1731767614712,3.15487,3169.7,3169.0,3.15556]
[1731767614889,3.15465,3170.0,3169.1,0.55]
[1731767615074,3.15445,3170.2,3169.2,0.06310566]
[1731767615274,3.15445,3170.2,3169.7,0.55]
[1731767615704,3.15417,3170.4,3169.7,0.55]
[1731767615867,3.15428,3170.3,3169.7,0.55]
[1731767616508,3.15445,3170.2,3169.7,0.55]
[1731767616734,0.630873,3170.2,3169.1,3.70546]
[1731767616869,3.15498,3169.6,3169.0,0.55]
[1731767617078,3.15498,3169.6,3168.5,3.02744524]
[1731767617079,3.15526,3169.4,3168.5,6.18348524]
[1731767617282,3.1555,3169.1,3168.5,3.15604]
[1731767617691,3.15535,3169.3,3168.5,3.15599]
[1731767617886,3.15535,3169.3,3168.5,3.15598]
[1731767618091,3.15457,3170.0,3168.8,3.15575]
[1731767618383,3.15486,3169.8,3169.0,3.15556]
[1731767618606,3.15487,3169.7,3169.1,0.55]
[1731767618924,6.15423,3170.4,3169.1,0.55]
[1731767618925,3.15432,3170.3,3169.1,0.55]
[1731767619213,3.15432,3170.3,3168.3,3.0]
[1731767619214,3.15525,3169.4,3168.6,3.15596]
[1731767619422,3.02744524,3169.9,3168.4,3.15616]
[1731767619827,3.02744524,3169.9,3168.3,6.15625]
[1731767619828,3.15556,3169.1,3168.3,6.15625]
[1731767621029,3.15574,3168.9,3168.2,3.0]
[1731767621325,3.15583,3168.8,3168.3,0.55]
[1731767621707,3.15583,3168.8,3168.3,3.55]
[1731767621902,6.31167,3168.8,3168.0,6.15651]
[1731767622107,6.31167,3168.8,3168.1,0.931315]
[1731767622647,3.15583,3168.8,3168.1,0.931315]
[1731767622922,3.15567,3168.9,3168.3,3.15618]
[1731767623122,3.15559,3169.0,3168.3,0.55]
[1731767623381,3.15578,3168.8,3168.3,0.55]
[1731767624203,3.15561,3169.0,3168.3,3.88037974]
[1731767624406,3.15548,3169.1,3168.3,0.88037974]
[1731767624613,3.15527,3169.3,3168.5,0.55]
[1731767624896,3.15557,3169.0,3168.5,0.55]
[1731767625740,3.15527,3169.3,3168.5,0.55]
[1731767625906,3.0,3169.8,3168.5,0.55]
[1731767625907,3.15487,3169.7,3168.5,0.55]
[1731767626106,3.15544,3169.2,3168.5,0.55]
[1731767626636,3.15546,3169.2,3168.5,0.55]
[1731767626930,3.15546,3169.2,3168.6,0.55]
[1731767627140,3.15546,3169.2,3168.6,3.70596]
[1731767627642,3.15546,3169.2,3168.3,3.15623]
[1731767627643,3.15546,3169.2,3168.5,0.55]
[1731767627841,3.15546,3169.2,3168.5,1.236235]
[1731767628502,3.15504,3169.6,3168.8,0.55]
[1731767628747,3.15479,3169.8,3169.2,0.55]
[1731767629763,3.15479,3169.8,3169.2,3.70531]
[1731767630506,3.15487,3169.7,3169.0,0.55]
[1731767630706,3.15487,3169.8,3169.0,0.92687456]
[1731767630940,3.15493,3169.7,3169.1,0.55]
[1731767631249,3.15471,3169.9,3169.2,0.55]
[1731767631456,3.15471,3169.9,3169.2,3.70532]
[1731767631746,3.15455,3170.1,3169.4,0.55]
[1731767631906,3.15458,3170.0,3169.4,0.55]
[1731767632110,3.15458,3170.0,3169.2,0.55]
[1731767632111,3.15484,3169.8,3169.2,0.55]
[1731767632307,3.15484,3169.8,3169.2,0.920545]
[1731767632556,3.15484,3169.8,3169.2,4.075905]
[1731767633051,3.15458,3170.0,3169.2,4.075905]
[1731767633205,3.15475,3169.9,3169.2,4.075905]
[1731767633406,3.15485,3169.8,3169.2,0.920545]
[1731767633847,3.15485,3169.8,3169.2,4.075905]
[1731767634048,3.15482,3169.8,3169.1,0.55]
[1731767634352,3.15482,3169.8,3169.1,3.70546]
[1731767635316,3.15482,3169.8,3169.3,0.55]
[1731767636319,3.15488,3169.7,3169.1,0.55]
[1731767636522,3.15482,3169.8,3169.1,4.691534]
[1731767636721,3.15497,3169.6,3169.1,1.536114]
[1731767636958,3.15497,3169.6,3169.1,0.55]
[1731767638823,3.15516,3169.5,3168.9,0.55]
[1731767639240,3.1552,3169.4,3168.9,0.55]
[1731767639447,3.15516,3169.5,3168.9,0.55]
[1731767639650,3.15518,3169.4,3168.9,0.55]
[1731767639841,3.15528,3169.3,3168.9,0.55]
[1731767640046,3.15517,3169.4,3168.6,0.55]
[1731767640250,3.15557,3169.0,3168.3,3.15623]
[1731767640457,3.15557,3169.0,3167.8,3.65212786]
[1731767640726,3.15557,3169.0,3168.3,3.15625]
[1731767641539,3.15557,3169.0,3168.4,0.55]
[1731767641738,4.61632211,3169.3,3168.8,3.15568]
[1731767641975,8.6080705,3169.6,3169.2,0.55]
[1731767641976,4.61632211,3169.6,3169.2,0.55]
[1731767642193,3.1548,3169.8,3169.2,0.55]
[1731767642393,4.61632211,3169.9,3169.2,0.55]
[1731767642607,4.61632211,3170.0,3169.5,3.15506]
[1731767642895,3.15462,3170.0,3169.6,0.55]
[1731767643090,3.15462,3170.0,3169.5,0.55]
[1731767643473,3.15462,3170.0,3169.2,3.81301452]
[1731767643474,3.15462,3170.0,3169.3,0.55]
[1731767643657,3.15483,3169.8,3169.3,0.55]
[1731767644071,4.61632211,3169.9,3169.3,4.45710045]
[1731767644394,3.15462,3170.0,3169.3,4.45710045]
[1731767644556,4.6186988,3170.1,3169.3,4.45710045]
[1731767644753,4.6186988,3170.1,3169.8,0.55]
[1731767644988,8.61001795,3170.4,3169.8,3.70475]
[1731767644989,7.7728788,3170.4,3169.8,3.70475]
[1731767645194,4.6186988,3170.4,3170.2,0.55]
[1731767645380,7.7724688,3170.8,3170.2,0.55]
[1731767645587,4.6186988,3170.9,3170.2,0.55]
[1731767645795,4.6186988,3171.1,3170.6,3.15389]
[1731767645996,3.15359,3171.0,3170.4,0.55]
[1731767646167,3.15386,3170.8,3170.4,0.55]
[1731767646369,6.49156586,3171.5,3170.4,0.55]
[1731767646370,7.7721788,3171.1,3170.4,3.15407]
[1731767646569,7.7721788,3171.1,3170.5,3.70406]
[1731767646786,4.6186988,3171.3,3170.3,0.55]
[1731767646987,3.15347,3171.1,3170.3,3.70423]
[1731767647170,7.7719988,3171.3,3170.3,3.70426]
[1731767647383,3.1533,3171.3,3170.7,0.55]
[1731767647890,3.1533,3171.3,3170.5,3.70402]
[1731767648488,4.6186988,3171.6,3171.0,3.15357]
[1731767648691,3.15288,3171.7,3170.7,0.55]
[1731767648692,4.6186988,3171.9,3171.2,0.55]
[1731767648879,3.15261,3172.0,3171.2,0.55]
[1731767648880,3.15305,3171.6,3171.2,0.55]
[1731767649399,4.6186988,3172.1,3171.4,0.55]
[1731767649611,3.15265,3172.0,3171.4,0.55]
[1731767649902,3.15272,3171.9,3171.3,0.55]
[1731767650084,3.15279,3171.8,3171.3,0.55]
[1731767650599,3.15265,3172.0,3171.3,0.55]
[1731767650907,3.15265,3172.0,3171.3,0.920333]
[1731767651468,3.1524,3172.2,3171.5,0.55]
[1731767651999,3.1525,3172.1,3171.5,0.55]
[1731767652186,3.15228,3172.3,3171.5,0.55]
[1731767652393,4.6186988,3172.6,3171.3,0.370333]
[1731767652394,3.1526,3172.0,3171.3,0.55]
[1731767652714,0.315228,3172.2,3171.1,0.55]
[1731767652861,4.6186988,3172.5,3171.1,0.55]
[1731767653061,3.15228,3172.3,3171.4,0.55]
[1731767653262,3.15256,3172.1,3171.4,0.55]
[1731767653468,3.15259,3172.0,3171.4,0.55]
[1731767653672,3.15259,3172.0,3171.2,0.55]
[1731767653910,3.15259,3172.0,3171.2,0.920345]
[1731767654212,3.15201,3172.6,3171.2,4.073715]
[1731767654393,6.02744524,3172.8,3171.2,4.073715]
[1731767654394,3.15269,3171.9,3171.2,4.073715]
[1731767654597,3.15269,3171.9,3171.2,0.920345]
[1731767654819,3.15293,3171.7,3171.1,0.55]
[1731767655025,3.15293,3171.7,3171.1,3.15346]
[1731767655196,3.15293,3171.7,3170.9,3.55]
[1731767655729,3.0,3172.1,3170.3,3.524676]
[1731767656038,3.0,3171.5,3169.9,3.15459]
[1731767656340,3.15377,3170.9,3170.1,3.15444]
[1731767656502,3.15377,3170.9,3170.1,3.469884]
[1731767656834,3.15377,3170.9,3170.1,3.469824]
[1731767657329,3.15377,3170.9,3170.2,0.55]
[1731767657529,3.0,3171.3,3170.2,0.55]
[1731767657530,3.15359,3171.0,3170.2,0.55]
[1731767657837,3.15388,3170.7,3170.2,0.55]
[1731767658508,3.0,3171.3,3170.2,0.55]
[1731767658843,3.0,3171.3,3169.7,6.18229524]
[1731767658844,3.15414,3170.5,3170.0,0.55]
[1731767658989,3.15414,3170.5,3169.7,6.18229524]
[1731767658990,3.15418,3170.4,3169.8,3.55]
[1731767659190,3.15406,3170.6,3169.7,0.55]
[1731767659425,3.15406,3170.6,3169.9,0.55]
[1731767659642,3.15358,3171.0,3170.3,3.15426]
[1731767659790,3.15368,3170.9,3170.4,0.55]
[1731767660138,3.15369,3170.9,3170.3,0.55]
[1731767660437,3.15399,3170.6,3170.1,0.55]
[1731767660641,3.15384,3170.8,3170.1,0.55]
[1731767660827,3.1539,3170.7,3170.1,0.920455]
[1731767661196,3.1541,3170.5,3170.1,0.920455]
[1731767661421,3.15414,3170.5,3169.9,0.55]
[1731767661729,3.1539,3170.7,3169.9,3.70466]
[1731767662107,3.15339,3171.2,3169.9,3.70466]
[1731767662108,3.15399,3170.6,3169.9,3.70466]
[1731767662314,3.15419,3170.4,3169.8,6.15476]
[1731767662709,3.15399,3170.6,3169.9,3.15463]
[1731767662903,3.15399,3170.6,3170.0,0.930939]
[1731767663242,3.15375,3170.9,3170.0,0.930939]
[1731767663545,3.15375,3170.9,3170.1,0.55]
[1731767663829,3.15375,3170.9,3170.3,0.55]
[1731767664032,3.15378,3170.8,3170.3,0.55]
[1731767664195,3.15378,3170.8,3170.1,0.55]
[1731767664395,3.15378,3170.8,3170.3,0.55]
[1731767664831,3.15359,3171.0,3170.3,0.55]
[1731767665147,6.1627,3171.9,3170.3,0.55]
[1731767665148,3.15326,3171.4,3170.7,0.55]
[1731767665638,3.1529,3171.7,3171.0,0.55]
[1731767665947,3.1529,3171.7,3171.1,0.55]
[1731767666152,3.1529,3171.7,3171.0,0.370359]
[1731767666153,3.15326,3171.4,3170.8,0.55]
[1731767666431,3.15335,3171.3,3170.6,3.70396]
[1731767666848,3.15326,3171.4,3170.8,0.55]
[1731767667145,3.15341,3171.2,3170.7,0.55]
[1731767667328,3.15369,3170.9,3170.4,0.55]
[1731767667637,3.15388,3170.7,3170.4,0.55]
[1731767667797,3.15388,3170.7,3169.8,3.0]
[1731767668004,3.15406,3170.6,3170.0,3.0]
[1731767668341,3.1543,3170.3,3169.6,3.15489]
[1731767668636,3.15423,3170.4,3169.7,3.470319]
[1731767668945,3.15365,3171.0,3170.3,3.15418]
[1731767668946,3.15363,3171.0,3170.3,3.15418]
[1731767669407,3.15344,3171.2,3170.6,0.55]
[1731767670546,3.15348,3171.1,3170.6,0.55]
[1731767671097,3.0,3171.3,3170.4,0.55]
[1731767671299,3.15365,3171.0,3170.4,0.55]
[1731767671500,3.15381,3170.8,3169.9,3.15466]
[1731767671738,3.15404,3170.6,3169.9,3.15465]
[1731767671903,3.15409,3170.5,3169.9,3.15465]
[1731767672104,3.15409,3170.5,3169.7,0.37857474]
[1731767672326,3.15419,3170.4,3169.7,6.470299]
[1731767672641,3.15409,3170.5,3169.8,0.9625239]
[1731767672842,3.15409,3170.5,3169.9,0.55]
[1731767673143,3.15409,3170.5,3169.9,3.70464]
[1731767674003,3.1537,3170.9,3170.3,0.55]
[1731767674202,3.46907,3170.9,3170.3,0.55]
[1731767674429,3.1537,3170.9,3170.3,0.55]
[1731767674634,3.0,3171.4,3170.5,0.55]
[1731767674835,3.15308,3171.5,3170.7,0.55]
[1731767675051,7.59513572,3171.6,3170.7,0.55]
[1731767675052,3.15344,3171.2,3170.7,0.55]
[1731767675348,3.15344,3171.2,3170.6,0.55]
[1731767676338,3.15338,3171.2,3170.7,0.55]
[1731767676547,3.15355,3171.1,3170.4,0.55]
[1731767676705,3.15355,3171.1,3170.5,0.55]
[1731767677243,3.1534,3171.2,3170.7,0.55]
[1731767677802,3.784238,3171.1,3170.5,0.55]
[1731767678002,3.784238,3171.1,3170.4,3.70412]
[1731767678003,3.15357,3171.1,3170.4,3.70412]
[1731767679143,3.15357,3171.1,3170.5,3.15405]
[1731767679445,3.15329,3171.3,3170.6,0.55]
[1731767679654,7.75577171,3171.4,3170.1,3.15444]